fUSD/lending_fUSD_20260519
["ID","MTS","AMOUNT","RATE_DAILY","PERIOD"]
[422611561,1779151844000,-506.0,0.00031668,6]
[422611566,1779151844000,-3544.0,0.00031982,2]
[422611570,1779151844000,-164.99548644,0.00032,120]
[422611568,1779151844000,-3632.0,0.00031982,2]
[422611569,1779151844000,-189.97120828,0.00032,120]
[422611510,1779151844000,-200.0,0.00030964,2]
[422611571,1779151844000,-700.0,0.00032,2]
[422611544,1779151844000,-5000.0,0.00031401,2]
[422611532,1779151844000,-161.0,0.00031198,30]
[422611563,1779151844000,-163.0,0.0003172,3]
[422611534,1779151844000,-153.0,0.00031198,30]
[422611507,1779151844000,-278.0,0.00030769,7]
[422611536,1779151844000,-450.0,0.00031198,30]
[422611511,1779151844000,-200.0,0.00030964,2]
[422611505,1779151844000,-2313.0,0.0003068,3]
[422611506,1779151844000,-150.0,0.00030769,7]
[422611514,1779151844000,-200.0,0.00030964,2]
[422611515,1779151844000,-200.0,0.00030964,2]
[422611517,1779151844000,-150.0,0.00031011,2]
[422611525,1779151844000,-329.0,0.00031165,30]
[422611516,1779151844000,-315.0,0.00030964,2]
[422611518,1779151844000,-200.0,0.00031096,2]
[422611526,1779151844000,-155.0,0.00031165,30]
[422611519,1779151844000,-4016.0,0.00031098,5]
[422611522,1779151844000,-163.01,0.00031134,2]
[422611521,1779151844000,-1268.52,0.00031117,7]
[422611508,1779151844000,-506.0,0.00030913,6]
[422611523,1779151844000,-157.0,0.00031165,30]
[422611535,1779151844000,-312.0,0.00031198,30]
[422611520,1779151844000,-3209.0,0.00031098,5]
[422611531,1779151844000,-4980.18,0.00031191,7]
[422611533,1779151844000,-164.0,0.00031198,30]
[422611530,1779151844000,-157.0,0.00031165,30]
[422611540,1779151844000,-5000.0,0.0003138,2]
[422611537,1779151844000,-306.187692,0.000312,7]
[422611539,1779151844000,-314.245263,0.000312,7]
[422611527,1779151844000,-159.0,0.00031165,30]
[422611529,1779151844000,-496.0,0.00031165,30]
[422611528,1779151844000,-161.0,0.00031165,30]
[422611538,1779151844000,-310.971875,0.000312,7]
[422611524,1779151844000,-159.0,0.00031165,30]
[422611606,1779151845000,-161.0,0.00032198,30]
[422611609,1779151845000,-312.0,0.00032198,30]
[422611614,1779151845000,-2313.0,0.0003236,11]
[422611613,1779151845000,-250.0,0.00032316,7]
[422611605,1779151845000,-1085.58402713,0.00032176,7]
[422611616,1779151845000,-152.0,0.00032384,7]
[422611615,1779151845000,-152.0,0.00032384,7]
[422611607,1779151845000,-168.36467967,0.00032198,30]
[422611618,1779151845000,-152.0,0.00032442,7]
[422611612,1779151845000,-562.6,0.0003221,5]
[422611610,1779151845000,-450.0,0.00032198,30]
[422611611,1779151845000,-5950.58,0.000322,14]
[422611617,1779151845000,-506.0,0.00032423,7]
[422611624,1779151845000,-292.5,0.00032548,2]
[422611622,1779151845000,-770.0,0.000325,2]
[422611630,1779151845000,-2313.0,0.0003268,11]
[422611619,1779151845000,-152.0,0.00032442,7]
[422611621,1779151845000,-517.0,0.000325,2]
[422611623,1779151845000,-928.0,0.000325,2]
[422611628,1779151845000,-1586.0,0.0003265,11]
[422611626,1779151845000,-230.9,0.000326,7]
[422611627,1779151845000,-200.3,0.000326,7]
[422611625,1779151845000,-150.0,0.00032562,2]
[422611629,1779151845000,-1586.0,0.0003265,11]
[422611632,1779151845000,-152.0,0.00032767,7]
[422611638,1779151845000,-150.0,0.0003277,7]
[422611639,1779151845000,-150.0,0.0003277,7]
[422611608,1779151845000,-153.0,0.00032198,30]
[422611620,1779151845000,-1132.71,0.000325,7]
[422611602,1779151845000,-636.72851022,0.00032176,7]
[422611577,1779151845000,-421.3647822,0.00032111,7]
[422611604,1779151845000,-222.19526241,0.00032176,7]
[422611641,1779151845000,-150.0,0.0003277,7]
[422611578,1779151845000,-622.12486416,0.00032111,7]
[422611579,1779151845000,-496.47373259,0.00032111,2]
[422611574,1779151845000,-163.0,0.0003211,3]
[422611573,1779151845000,-200.0,0.00032055,2]
[422611572,1779151845000,-2313.0,0.0003204,3]
[422611576,1779151845000,-535.73568834,0.00032111,2]
[422611575,1779151845000,-343.14903541,0.00032111,7]
[422611581,1779151845000,-167.97334161,0.00032111,7]
[422611591,1779151845000,-168.50965327,0.00032176,2]
[422611590,1779151845000,-157.0,0.00032165,30]
[422611585,1779151845000,-329.0,0.00032165,30]
[422611584,1779151845000,-159.0,0.00032165,30]
[422611580,1779151845000,-487.5483498,0.00032111,7]
[422611603,1779151845000,-406.03076882,0.00032176,7]
[422611582,1779151845000,-334.33513414,0.00032162,2]
[422611592,1779151845000,-164.69197537,0.00032176,2]
[422611589,1779151845000,-496.0,0.00032165,30]
[422611583,1779151845000,-157.0,0.00032165,30]
[422611587,1779151845000,-159.0,0.00032165,30]
[422611588,1779151845000,-161.0,0.00032165,30]
[422611596,1779151845000,-158.25389996,0.00032176,7]
[422611597,1779151845000,-607.03184108,0.00032176,2]
[422611593,1779151845000,-547.26558876,0.00032176,7]
[422611598,1779151845000,-219.57578969,0.00032176,7]
[422611599,1779151845000,-388.6539379,0.00032176,7]
[422611594,1779151845000,-563.17266573,0.00032176,2]
[422611601,1779151845000,-578.03460822,0.00032176,7]
[422611595,1779151845000,-165.0169709,0.00032176,7]
[422611600,1779151845000,-407.91775931,0.00032176,7]
[422611586,1779151845000,-155.0,0.00032165,30]
[422611640,1779151845000,-150.0,0.0003277,7]
[422611648,1779151845000,-1356.98003392,0.00032782,7]
[422611642,1779151845000,-150.0,0.0003277,7]
[422611672,1779151845000,-163.01848364,0.00032954,7]
[422611674,1779151845000,-1268.52,0.0003297,14]
[422611676,1779151845000,-163.01848364,0.00032991,7]
[422611675,1779151845000,-150.0,0.00032991,7]
[422611673,1779151845000,-318.0,0.0003297,11]
[422611677,1779151845000,-150.0,0.00032997,7]
[422611678,1779151845000,-172.0,0.00033,14]
[422611683,1779151845000,-1110.78697574,0.00033,30]
[422611679,1779151845000,-189.97120828,0.00033,120]
[422611682,1779151845000,-1110.78697574,0.00033,30]
[422611684,1779151845000,-1110.78697574,0.00033,30]
[422611680,1779151845000,-164.99548644,0.00033,120]
[422611696,1779151845000,-150.0,0.0003305,7]
[422611686,1779151845000,-1110.78697574,0.00033,30]
[422611685,1779151845000,-1110.78697574,0.00033,30]
[422611687,1779151845000,-1110.78697574,0.00033,30]
[422611691,1779151845000,-3947.0,0.00033,3]
[422611689,1779151845000,-1110.78697574,0.00033,60]
[422611695,1779151845000,-150.0,0.0003303,7]
[422611688,1779151845000,-1110.78697574,0.00033,60]
[422611690,1779151845000,-1110.78697574,0.00033,60]
[422611693,1779151845000,-150.0,0.00033021,7]
[422611692,1779151845000,-535.03,0.00033014,5]
[422611694,1779151845000,-163.01848364,0.00033027,7]
[422611697,1779151845000,-163.01848364,0.00033064,7]
[422611700,1779151845000,-150.0,0.00033086,7]
[422611699,1779151845000,-1503.126,0.00033071,34]
[422611698,1779151845000,-171.33146696,0.00033071,34]
[422611644,1779151845000,-163.01848364,0.0003277,7]
[422611667,1779151845000,-163.01848364,0.0003288,7]
[422611668,1779151845000,-150.0,0.00032895,7]
[422611681,1779151845000,-300.0,0.00033,2]
[422611666,1779151845000,-150.0,0.0003288,7]
[422611669,1779151845000,-150.0,0.000329,7]
[422611633,1779151845000,-150.0,0.0003277,7]
[422611635,1779151845000,-150.0,0.0003277,7]
[422611634,1779151845000,-150.0,0.0003277,7]
[422611643,1779151845000,-202.77329721,0.0003277,7]
[422611637,1779151845000,-150.0,0.0003277,7]
[422611636,1779151845000,-150.0,0.0003277,7]
[422611645,1779151845000,-150.0,0.0003277,7]
[422611647,1779151845000,-795.91063778,0.00032782,7]
[422611631,1779151845000,-152.0,0.00032767,7]
[422611650,1779151845000,-2000.0,0.00032836,120]
[422611657,1779151845000,-1000.0,0.00032877,120]
[422611646,1779151845000,-758.78980135,0.00032782,2]
[422611656,1779151845000,-379.42,0.00032877,2]
[422611653,1779151845000,-676.05463521,0.00032876,30]
[422611649,1779151845000,-163.01848364,0.00032807,7]
[422611651,1779151845000,-163.01848364,0.00032843,7]
[422611652,1779151845000,-1000.0,0.00032876,30]
[422611664,1779151845000,-500.0,0.00032877,2]
[422611661,1779151845000,-500.0,0.00032877,2]
[422611663,1779151845000,-500.0,0.00032877,2]
[422611662,1779151845000,-500.0,0.00032877,2]
[422611659,1779151845000,-500.0,0.00032877,2]
[422611665,1779151845000,-415.84591649,0.00032877,2]
[422611671,1779151845000,-150.0,0.00032928,7]
[422611660,1779151845000,-500.0,0.00032877,2]
[422611655,1779151845000,-350.13,0.00032877,2]
[422611658,1779151845000,-1000.0,0.00032877,120]
[422611654,1779151845000,-1002.41,0.00032877,2]
[422611670,1779151845000,-163.01848364,0.00032917,7]
[422611743,1779151846000,-163.01848364,0.00033432,7]
[422611742,1779151846000,-150.0,0.00033432,7]
[422611745,1779151846000,-1586.0,0.00033449,11]
[422611744,1779151846000,-2313.0,0.00033449,11]
[422611739,1779151846000,-150.0,0.00033398,7]
[422611748,1779151846000,-163.01848364,0.00033505,7]
[422611737,1779151846000,-150.0,0.00033377,7]
[422611741,1779151846000,-150.0,0.0003342,7]
[422611740,1779151846000,-150.0,0.00033403,7]
[422611738,1779151846000,-163.01848364,0.00033395,7]
[422611734,1779151846000,-163.01848364,0.00033322,7]
[422611749,1779151846000,-150.0,0.00033523,7]
[422611747,1779151846000,-163.01848364,0.00033469,7]
[422611774,1779151846000,-163.01848364,0.000338,7]
[422611750,1779151846000,-150.0,0.00033542,7]
[422611751,1779151846000,-163.01848364,0.00033542,7]
[422611761,1779151846000,-163.01848364,0.00033653,7]
[422611762,1779151846000,-150.0,0.0003368,7]
[422611758,1779151846000,-1586.0,0.00033643,11]
[422611754,1779151846000,-163.01848364,0.00033579,7]
[422611760,1779151846000,-150.0,0.00033653,7]
[422611759,1779151846000,-150.0,0.00033649,7]
[422611756,1779151846000,-150.0,0.0003361,7]
[422611755,1779151846000,-163.0,0.0003361,11]
[422611752,1779151846000,-150.0,0.0003355,7]
[422611753,1779151846000,-150.0,0.00033561,7]
[422611757,1779151846000,-163.01848364,0.00033616,7]
[422611735,1779151846000,-150.0,0.0003333,7]
[422611746,1779151846000,-150.0,0.00033453,7]
[422611731,1779151846000,-150.0,0.0003329,7]
[422611701,1779151846000,-150.0,0.00033101,7]
[422611732,1779151846000,-299.9,0.00033302,2]
[422611763,1779151846000,-150.0,0.0003368,7]
[422611703,1779151846000,-306.187692,0.00033117,16]
[422611702,1779151846000,-163.01848364,0.00033101,7]
[422611709,1779151846000,-329.0,0.00033165,30]
[422611708,1779151846000,-159.0,0.00033165,30]
[422611705,1779151846000,-150.0,0.00033147,7]
[422611704,1779151846000,-163.01848364,0.00033138,7]
[422611710,1779151846000,-155.0,0.00033165,30]
[422611706,1779151846000,-150.0,0.0003316,7]
[422611707,1779151846000,-157.0,0.00033165,30]
[422611712,1779151846000,-161.0,0.00033165,30]
[422611723,1779151846000,-314.245263,0.000332,16]
[422611711,1779151846000,-159.0,0.00033165,30]
[422611713,1779151846000,-496.0,0.00033165,30]
[422611714,1779151846000,-157.0,0.00033165,30]
[422611717,1779151846000,-161.0,0.00033198,30]
[422611721,1779151846000,-310.971875,0.000332,16]
[422611720,1779151846000,-450.0,0.00033198,30]
[422611715,1779151846000,-163.01848364,0.00033174,7]
[422611719,1779151846000,-312.0,0.00033198,30]
[422611718,1779151846000,-153.0,0.00033198,30]
[422611724,1779151846000,-150.0,0.00033211,7]
[422611727,1779151846000,-150.0,0.00033245,7]
[422611726,1779151846000,-150.0,0.00033225,7]
[422611729,1779151846000,-150.0,0.00033272,7]
[422611728,1779151846000,-163.01848364,0.00033248,7]
[422611725,1779151846000,-163.01848364,0.00033211,7]
[422611736,1779151846000,-163.01848364,0.00033358,7]
[422611733,1779151846000,-150.0,0.00033322,7]
[422611730,1779151846000,-163.01848364,0.00033285,7]
[422611764,1779151846000,-150.0,0.0003368,7]
[422611716,1779151846000,-506.0,0.00033178,8]
[422611766,1779151846000,-910.54776163,0.00033691,2]
[422611802,1779151846000,-163.01848364,0.00034131,7]
[422611804,1779151846000,-150.0,0.00034151,7]
[422611811,1779151846000,-496.0,0.00034165,30]
[422611814,1779151846000,-150.0,0.0003417,7]
[422611812,1779151846000,-157.0,0.00034165,30]
[422611807,1779151846000,-329.0,0.00034165,30]
[422611806,1779151846000,-159.0,0.00034165,30]
[422611805,1779151846000,-157.0,0.00034165,30]
[422611808,1779151846000,-155.0,0.00034165,30]
[422611815,1779151846000,-562.6,0.00034182,7]
[422611810,1779151846000,-161.0,0.00034165,30]
[422611803,1779151846000,-150.0,0.00034135,7]
[422611809,1779151846000,-159.0,0.00034165,30]
[422611813,1779151846000,-163.01848364,0.00034167,7]
[422611817,1779151846000,-150.0,0.00034195,7]
[422611827,1779151846000,-842.37,0.00034199,2]
[422611829,1779151846000,-150.0,0.000342,7]
[422611828,1779151846000,-842.56,0.00034199,2]
[422611816,1779151846000,-150.0,0.0003419,2]
[422611819,1779151846000,-153.0,0.00034198,30]
[422611818,1779151846000,-161.0,0.00034198,30]
[422611821,1779151846000,-450.0,0.00034198,30]
[422611826,1779151846000,-842.37,0.00034199,2]
[422611823,1779151846000,-433.38260606,0.00034199,7]
[422611822,1779151846000,-500.0,0.00034199,7]
[422611820,1779151846000,-312.0,0.00034198,30]
[422611824,1779151846000,-842.37,0.00034199,2]
[422611830,1779151846000,-163.0,0.00034202,11]
[422611765,1779151846000,-163.01848364,0.00033689,7]
[422611795,1779151846000,-150.0,0.00034036,7]
[422611799,1779151846000,-150.0,0.00034094,7]
[422611825,1779151846000,-842.37,0.00034199,2]
[422611796,1779151846000,-1586.0,0.0003404,11]
[422611794,1779151846000,-150.0,0.00034025,7]
[422611769,1779151846000,-163.01848364,0.00033726,7]
[422611775,1779151846000,-150.0,0.0003381,7]
[422611767,1779151846000,-1628.3760407,0.00033691,7]
[422611773,1779151846000,-150.0,0.00033774,7]
[422611770,1779151846000,-150.0,0.00033763,7]
[422611772,1779151846000,-1000.0,0.00033769,19]
[422611768,1779151846000,-150.0,0.0003372,7]
[422611776,1779151846000,-163.01848364,0.00033836,7]
[422611777,1779151846000,-152.0,0.00033839,3]
[422611779,1779151846000,-163.01848364,0.00033873,7]
[422611781,1779151846000,-150.0,0.0003389,7]
[422611787,1779151846000,-163.01848364,0.00033947,7]
[422611780,1779151846000,-150.0,0.00033878,7]
[422611788,1779151846000,-150.0,0.00033984,7]
[422611771,1779151846000,-163.01848364,0.00033763,7]
[422611783,1779151846000,-150.0,0.00033908,7]
[422611778,1779151846000,-150.0,0.00033873,7]
[422611797,1779151846000,-163.01848364,0.00034057,7]
[422611789,1779151846000,-150.0,0.00033984,7]
[422611791,1779151846000,-161.97,0.00034,120]
[422611792,1779151846000,-750.0,0.00034,2]
[422611801,1779151846000,-2313.0,0.00034121,11]
[422611793,1779151846000,-163.01848364,0.0003402,7]
[422611790,1779151846000,-163.01848364,0.00033984,7]
[422611784,1779151846000,-163.01848364,0.0003391,7]
[422611782,1779151846000,-150.0,0.000339,7]
[422611800,1779151846000,-163.01848364,0.00034094,7]
[422611798,1779151846000,-150.0,0.0003407,7]
[422611785,1779151846000,-506.0,0.00033934,9]
[422611786,1779151846000,-150.0,0.0003394,7]
[422611873,1779151847000,-150.0,0.00034653,7]
[422611863,1779151847000,-163.01848364,0.00034535,7]
[422611861,1779151847000,-150.0,0.00034528,7]
[422611867,1779151847000,-150.0,0.0003459,7]
[422611857,1779151847000,-163.01848364,0.00034462,7]
[422611862,1779151847000,-150.0,0.00034535,7]
[422611866,1779151847000,-150.0,0.0003459,7]
[422611860,1779151847000,-173.0,0.00034521,30]
[422611864,1779151847000,-1586.0,0.00034539,11]
[422611870,1779151847000,-163.01848364,0.00034609,7]
[422611880,1779151847000,-163.01848364,0.00034719,7]
[422611868,1779151847000,-150.0,0.0003459,7]
[422611874,1779151847000,-150.0,0.0003467,7]
[422611869,1779151847000,-150.0,0.0003459,7]
[422611871,1779151847000,-150.0,0.00034646,7]
[422611875,1779151847000,-1586.0,0.0003468,11]
[422611879,1779151847000,-242.46497116,0.00034712,2]
[422611876,1779151847000,-2313.0,0.0003468,11]
[422611878,1779151847000,-506.0,0.00034689,10]
[422611877,1779151847000,-163.01848364,0.00034682,7]
[422611881,1779151847000,-150.0,0.0003472,7]
[422611884,1779151847000,-163.01848364,0.00034756,7]
[422611859,1779151847000,-150.0,0.00034511,7]
[422611889,1779151847000,-1268.52,0.00034823,30]
[422611872,1779151847000,-163.01848364,0.00034646,7]
[422611865,1779151847000,-163.01848364,0.00034572,7]
[422611842,1779151847000,-437.67260418,0.00034281,6]
[422611850,1779151847000,-150.0,0.00034363,7]
[422611882,1779151847000,-150.0,0.0003473,7]
[422611831,1779151847000,-150.0,0.00034204,7]
[422611832,1779151847000,-163.01848364,0.00034204,7]
[422611833,1779151847000,-163.01848364,0.00034241,7]
[422611834,1779151847000,-1000.0,0.00034247,120]
[422611836,1779151847000,-4980.18,0.00034254,14]
[422611837,1779151847000,-150.0,0.00034277,7]
[422611840,1779151847000,-300.0,0.00034281,6]
[422611835,1779151847000,-1000.0,0.00034247,120]
[422611839,1779151847000,-200.0,0.00034281,6]
[422611841,1779151847000,-437.67260418,0.00034281,6]
[422611838,1779151847000,-163.01848364,0.00034278,7]
[422611845,1779151847000,-150.0,0.00034315,7]
[422611843,1779151847000,-2313.0,0.00034283,11]
[422611844,1779151847000,-2313.0,0.00034299,11]
[422611855,1779151847000,-150.0,0.0003445,7]
[422611856,1779151847000,-150.0,0.0003446,7]
[422611846,1779151847000,-163.01848364,0.00034315,7]
[422611847,1779151847000,-150.0,0.0003433,7]
[422611848,1779151847000,-163.01848364,0.00034351,7]
[422611849,1779151847000,-150.0,0.00034353,7]
[422611851,1779151847000,-163.01848364,0.00034388,7]
[422611852,1779151847000,-150.0,0.00034402,7]
[422611854,1779151847000,-163.01848364,0.00034425,7]
[422611853,1779151847000,-150.0,0.00034425,7]
[422611858,1779151847000,-163.01848364,0.00034498,7]
[422611883,1779151847000,-150.0,0.00034756,7]
[422611893,1779151847000,-150.0,0.0003485,7]
[422611886,1779151847000,-163.01848364,0.00034793,7]
[422611929,1779151847000,-159.0,0.00035165,30]
[422611919,1779151847000,-1899.77204748,0.00035054,7]
[422611918,1779151847000,-1062.3057219,0.00035054,2]
[422611921,1779151847000,-163.01848364,0.00035087,7]
[422611920,1779151847000,-150.0,0.00035087,7]
[422611922,1779151847000,-5950.58,0.000351,14]
[422611924,1779151847000,-163.01848364,0.00035124,7]
[422611923,1779151847000,-150.0,0.00035111,7]
[422611925,1779151847000,-150.0,0.00035144,7]
[422611926,1779151847000,-150.0,0.00035155,7]
[422611928,1779151847000,-157.0,0.00035165,30]
[422611927,1779151847000,-163.01848364,0.0003516,7]
[422611930,1779151847000,-329.0,0.00035165,30]
[422611932,1779151847000,-159.0,0.00035165,30]
[422611934,1779151847000,-496.0,0.00035165,30]
[422611936,1779151847000,-150.0,0.00035197,7]
[422611933,1779151847000,-171.95204809,0.00035165,30]
[422611931,1779151847000,-155.0,0.00035165,30]
[422611935,1779151847000,-157.0,0.00035165,30]
[422611941,1779151847000,-312.0,0.00035198,30]
[422611940,1779151847000,-161.61786841,0.00035198,30]
[422611885,1779151847000,-150.0,0.00034779,7]
[422611939,1779151847000,-161.0,0.00035198,30]
[422611937,1779151847000,-150.0,0.00035197,7]
[422611942,1779151847000,-450.0,0.00035198,30]
[422611912,1779151847000,-1000.0,0.00034998,25]
[422611911,1779151847000,-150.0,0.00034986,7]
[422611938,1779151847000,-163.01848364,0.00035197,7]
[422611915,1779151847000,-150.0,0.0003503,7]
[422611910,1779151847000,-3632.0,0.00034982,2]
[422611890,1779151847000,-150.0,0.00034828,7]
[422611888,1779151847000,-150.0,0.00034818,7]
[422611892,1779151847000,-1586.0,0.00034842,11]
[422611891,1779151847000,-163.01848364,0.00034829,7]
[422611894,1779151847000,-150.0,0.00034866,7]
[422611901,1779151847000,-163.01848364,0.0003494,7]
[422611897,1779151847000,-1132.71,0.000349,7]
[422611895,1779151847000,-163.01848364,0.00034866,7]
[422611904,1779151847000,-400.0,0.0003497,2]
[422611896,1779151847000,-211.60966024,0.00034895,2]
[422611898,1779151847000,-163.01848364,0.00034903,7]
[422611887,1779151847000,-1500.0,0.00034795,2]
[422611900,1779151847000,-163.0,0.00034923,11]
[422611899,1779151847000,-150.0,0.00034904,7]
[422611917,1779151847000,-163.01848364,0.0003505,7]
[422611909,1779151847000,-3544.0,0.00034982,2]
[422611907,1779151847000,-150.0,0.00034981,7]
[422611906,1779151847000,-163.01848364,0.00034977,7]
[422611913,1779151847000,-150.0,0.00035011,7]
[422611916,1779151847000,-150.0,0.00035046,7]
[422611905,1779151847000,-150.0,0.00034977,7]
[422611903,1779151847000,-713.0,0.00034952,11]
[422611902,1779151847000,-3996.51,0.00034949,2]
[422611908,1779151847000,-1219.855,0.00034982,2]
[422611914,1779151847000,-163.01848364,0.00035013,7]
[422611968,1779151848000,-163.01848364,0.00035418,7]
[422611943,1779151848000,-1000.0,0.00035199,26]
[422611969,1779151848000,-2313.0,0.00035438,11]
[422611972,1779151848000,-150.0,0.00035461,7]
[422611970,1779151848000,-506.0,0.00035444,11]
[422611971,1779151848000,-163.01848364,0.00035455,7]
[422611975,1779151848000,-150.0,0.00035501,7]
[422611974,1779151848000,-150.0,0.00035501,7]
[422611973,1779151848000,-163.01848364,0.00035491,7]
[422611976,1779151848000,-150.0,0.00035501,7]
[422611983,1779151848000,-163.01,0.00035582,2]
[422611981,1779151848000,-163.01848364,0.00035565,7]
[422611982,1779151848000,-150.0,0.00035571,7]
[422611984,1779151848000,-163.01848364,0.00035602,7]
[422611985,1779151848000,-779.60778062,0.00035616,7]
[422611986,1779151848000,-779.60778062,0.00035616,7]
[422611987,1779151848000,-779.60778062,0.00035616,7]
[422611980,1779151848000,-150.0,0.00035532,7]
[422611989,1779151848000,-779.60778062,0.00035616,7]
[422611978,1779151848000,-150.0,0.00035528,7]
[422611979,1779151848000,-163.01848364,0.00035528,7]
[422611977,1779151848000,-1327.44,0.00035516,14]
[422611956,1779151848000,-150.0,0.00035291,7]
[422611967,1779151848000,-150.0,0.00035418,7]
[422611992,1779151848000,-779.60778062,0.00035616,7]
[422611944,1779151848000,-310.971875,0.000352,26]
[422611945,1779151848000,-314.245263,0.000352,26]
[422611952,1779151848000,-400.0,0.0003527,2]
[422611950,1779151848000,-150.0,0.00035241,7]
[422611946,1779151848000,-1500.0,0.000352,7]
[422611947,1779151848000,-9240.16,0.000352,2]
[422611951,1779151848000,-1000.0,0.00035252,21]
[422611948,1779151848000,-163.01848364,0.00035234,7]
[422611949,1779151848000,-157.17,0.00035238,120]
[422611954,1779151848000,-150.0,0.00035273,7]
[422611955,1779151848000,-150.0,0.00035281,7]
[422611957,1779151848000,-154.90923201,0.000353,30]
[422611958,1779151848000,-150.0,0.00035303,7]
[422611961,1779151848000,-150.0,0.00035315,120]
[422611962,1779151848000,-7994.86625844,0.00035319,2]
[422611965,1779151848000,-163.01848364,0.00035381,7]
[422611964,1779151848000,-150.0,0.00035371,7]
[422611959,1779151848000,-150.0,0.00035308,7]
[422611963,1779151848000,-163.01848364,0.00035344,7]
[422611960,1779151848000,-163.01848364,0.00035308,7]
[422611966,1779151848000,-150.0,0.00035407,7]
[422611988,1779151848000,-779.60778062,0.00035616,7]
[422611953,1779151848000,-163.01848364,0.00035271,7]
[422611991,1779151848000,-779.60778062,0.00035616,7]
[422612020,1779151848000,-779.60778062,0.00035616,7]
[422612021,1779151848000,-779.60778062,0.00035616,7]
[422612023,1779151848000,-779.60778062,0.00035616,7]
[422612024,1779151848000,-779.60778062,0.00035616,7]
[422612022,1779151848000,-779.60778062,0.00035616,7]
[422612025,1779151848000,-779.60778062,0.00035616,7]
[422612027,1779151848000,-779.60778062,0.00035616,7]
[422612032,1779151848000,-779.60778062,0.00035616,7]
[422612026,1779151848000,-779.60778062,0.00035616,7]
[422612028,1779151848000,-779.60778062,0.00035616,7]
[422612030,1779151848000,-779.60778062,0.00035616,7]
[422612029,1779151848000,-779.60778062,0.00035616,7]
[422612031,1779151848000,-779.60778062,0.00035616,7]
[422612033,1779151848000,-779.60778062,0.00035616,7]
[422612036,1779151848000,-779.60778062,0.00035616,7]
[422612034,1779151848000,-779.60778062,0.00035616,7]
[422612035,1779151848000,-779.60778062,0.00035616,7]
[422612038,1779151848000,-1705.17910199,0.00035616,7]
[422612037,1779151848000,-1705.17910199,0.00035616,7]
[422612039,1779151848000,-1705.17910199,0.00035616,7]
[422611990,1779151848000,-779.60778062,0.00035616,7]
[422612019,1779151848000,-779.60778062,0.00035616,7]
[422612018,1779151848000,-779.60778062,0.00035616,7]
[422612005,1779151848000,-779.60778062,0.00035616,7]
[422612012,1779151848000,-779.60778062,0.00035616,7]
[422611994,1779151848000,-779.60778062,0.00035616,7]
[422612003,1779151848000,-779.60778062,0.00035616,7]
[422611996,1779151848000,-779.60778062,0.00035616,7]
[422611993,1779151848000,-779.60778062,0.00035616,7]
[422612004,1779151848000,-779.60778062,0.00035616,7]
[422612000,1779151848000,-779.60778062,0.00035616,7]
[422612002,1779151848000,-779.60778062,0.00035616,7]
[422611999,1779151848000,-779.60778062,0.00035616,7]
[422611997,1779151848000,-779.60778062,0.00035616,7]
[422612001,1779151848000,-779.60778062,0.00035616,7]
[422611995,1779151848000,-779.60778062,0.00035616,7]
[422612016,1779151848000,-779.60778062,0.00035616,7]
[422612006,1779151848000,-779.60778062,0.00035616,7]
[422612007,1779151848000,-779.60778062,0.00035616,7]
[422612009,1779151848000,-779.60778062,0.00035616,7]